fUSD/lending_fUSD_20250622
["ID","MTS","AMOUNT","RATE_DAILY","PERIOD"]
[366898158,1750557062191,-1000.0,0.00021918,4]
[366898159,1750557062200,-1000.0,0.00021918,4]
[366898160,1750557062210,-1000.0,0.00021918,4]
[366898161,1750557062221,-1000.0,0.00021918,4]
[366898162,1750557062231,-1000.0,0.00021918,4]
[366898163,1750557062240,-1000.0,0.00021918,4]
[366898164,1750557062251,-1000.0,0.00021918,4]
[366898165,1750557062260,-1000.0,0.00021918,4]
[366898166,1750557062269,-1000.0,0.00021918,4]
[366898167,1750557062278,-1000.0,0.00021918,4]
[366898168,1750557062288,-1000.0,0.00021918,4]
[366898169,1750557062297,-1000.0,0.00021918,4]
[366898170,1750557062307,-1000.0,0.00021918,4]
[366898171,1750557062317,-1000.0,0.00021918,4]
[366898172,1750557062327,-1000.0,0.00021918,4]
[366898173,1750557062336,-1020.0,0.00021918,4]
[366898174,1750557062346,-1000.0,0.00021918,4]
[366898175,1750557062356,-876.0,0.00021918,4]
[366898176,1750557062365,-156.54,0.00021918,2]
[366898177,1750557062375,-151.0,0.00021918,7]
[366898178,1750557062385,-206.72853,0.00021918,7]
[366898179,1750557062395,-255.017747,0.00021918,7]
[366898180,1750557062406,-945.696161,0.0002193,7]
[366898181,1750557062415,-151.0,0.0002193,7]
[366898182,1750557062425,-945.696161,0.0002193,7]
[366898183,1750557062445,-260.52821769,0.0002193,7]
[366898184,1750557062462,-501.973561,0.0002193,7]
[366898185,1750557062473,-151.0,0.0002193,7]
[366898186,1750557062483,-171.589932,0.0002193,7]
[366898187,1750557062496,-151.0,0.0002193,7]
[366898188,1750557062509,-501.973561,0.0002193,7]
[366898189,1750557062520,-171.589932,0.0002193,7]
[366898190,1750557062531,-1478.65194,0.0002193,7]
[366898191,1750557062541,-1478.65194,0.0002193,7]
[366898192,1750557062554,-151.0,0.0002193,7]
[366898193,1750557062565,-279.398262,0.0002193,7]
[366898194,1750557062577,-279.398262,0.0002193,7]
[366898195,1750557062587,-12292.47503666,0.00021939,2]
[366898196,1750557062598,-151.0,0.00021939,7]
[366898197,1750557062608,-151.0,0.00021939,7]
[366898198,1750557062619,-151.0,0.00021939,7]
[366898199,1750557062629,-436.94392,0.00021939,7]
[366898200,1750557062639,-2434.74389024,0.00021941,2]
[366898201,1750557062649,-500.0,0.00021944,2]
[366898202,1750557062660,-502.32051416,0.00021972,2]
[366898203,1750557062670,-500.0,0.00021973,2]
[366898204,1750557062679,-500.0,0.00021973,2]
[366898205,1750557062690,-14778.49211023,0.00021979,2]
[366898206,1750557062699,-1090.0,0.00021993,2]
[366898207,1750557062709,-2524.82941417,0.00021996,2]
[366898208,1750557062720,-290.477561,0.00021999,7]
[366898209,1750557062730,-676.24,0.00021999,2]
[366898210,1750557062739,-8675.43,0.00021999,2]
[366898211,1750557062753,-12292.47503666,0.00021999,2]
[366898212,1750557062763,-9837.84,0.00022,2]
[366898213,1750557062778,-91645.35,0.00022,7]
[366898214,1750557062788,-293.835773,0.00022,7]
[366898215,1750557062798,-47935.20137051,0.00022,2]
[366898216,1750557062808,-151.0,0.00022,7]
[366898217,1750557062818,-151.0,0.00022,7]
[366898218,1750557062827,-151.0,0.00022,7]
[366898219,1750557062836,-151.0,0.00022,7]
[366898220,1750557062847,-152.132589,0.00022,7]
[366898221,1750557062856,-151.0,0.00022,7]
[366898222,1750557062866,-151.0,0.00022,7]
[366898223,1750557062875,-151.0,0.00022,7]
[366898224,1750557062885,-151.0,0.00022,7]
[366898225,1750557062894,-151.0,0.00022,7]
[366898226,1750557062903,-151.0,0.00022,7]
[366898227,1750557062915,-151.0,0.00022,7]
[366898228,1750557062926,-151.0,0.00022,7]
[366898229,1750557062935,-151.0,0.00022,7]
[366898230,1750557062945,-151.0,0.00022,7]
[366898231,1750557062954,-151.0,0.00022,7]
[366898232,1750557062964,-151.0,0.00022,7]
[366898233,1750557062973,-150.0,0.00022003,2]
[366898234,1750557062982,-521.54748547,0.00022003,6]
[366898235,1750557062991,-151.0,0.00022016,7]
[366898236,1750557063003,-151.0,0.00022016,7]
[366898237,1750557063013,-229.66029,0.00022016,7]
[366898238,1750557063023,-459.961665,0.00022016,2]
[366898239,1750557063033,-459.961665,0.00022016,2]
[366898240,1750557063044,-151.0,0.00022016,7]
[366898241,1750557063054,-151.0,0.00022016,7]
[366898242,1750557063066,-151.0,0.00022016,7]
[366898243,1750557063076,-275.433523,0.00022016,7]
[366898244,1750557063087,-275.433523,0.00022016,7]
[366898245,1750557063097,-151.0,0.00022016,7]
[366898246,1750557063107,-244.26379,0.00022016,7]
[366898247,1750557063126,-244.26379,0.00022016,7]
[366898248,1750557063146,-651.59,0.00022043,2]
[366898249,1750557063166,-500.0,0.00022043,2]
[366898250,1750557063186,-14778.49211023,0.00022043,2]
[366898251,1750557063204,-2618.2481025,0.00022051,2]
[366898252,1750557063221,-12292.47503666,0.0002206,2]
[366898253,1750557063240,-335.35620659,0.00022082,30]
[366898254,1750557063260,-158.99677649,0.00022091,2]
[366898255,1750557063283,-20419.37099218,0.00022091,2]
[366898256,1750557063300,-360.65897195,0.00022091,2]
[366898257,1750557063321,-634.06830907,0.00022091,2]
[366898258,1750557063341,-190.1430556,0.00022091,2]
[366898259,1750557063356,-1000.0,0.000221,2]
[366898260,1750557063378,-168.0,0.00022103,2]
[366898261,1750557063392,-2715.12328229,0.00022106,2]
[366898262,1750557063412,-14778.49211023,0.00022108,2]
[366898263,1750557063427,-12292.47503666,0.00022121,2]
[366898264,1750557063442,-151.0,0.00022121,7]
[366898265,1750557063458,-150.0,0.00022136,2]
[366898266,1750557063475,-521.54748547,0.00022141,6]
[366898267,1750557063492,-2815.58284374,0.00022161,2]
[366898268,1750557063513,-335.35620659,0.00022164,30]
[366898269,1750557063529,-160.40531067,0.00022164,4]
[366898270,1750557063545,-222.81421839,0.00022164,4]
[366898271,1750557063561,-177.72143689,0.00022164,4]
[366898272,1750557063578,-14778.49211023,0.00022172,2]
[366898273,1750557063594,-247.799281,0.00022172,7]
[366898274,1750557063611,-151.0,0.00022172,7]
[366898275,1750557063627,-912.846595,0.00022172,7]
[366898276,1750557063642,-912.846595,0.00022172,7]
[366898277,1750557063657,-727.47416,0.00022172,7]
[366898278,1750557063673,-727.47416,0.00022172,7]
[366898279,1750557063689,-500.0,0.00022173,2]
[366898280,1750557063706,-500.0,0.00022173,2]
[366898281,1750557063721,-500.0,0.00022173,2]
[366898282,1750557063737,-501.63359868,0.00022173,2]
[366898283,1750557063756,-500.0,0.00022173,2]
[366898284,1750557063775,-500.0,0.00022173,2]
[366898285,1750557063792,-528.80985038,0.00022173,2]
[366898286,1750557063807,-156.07488646,0.00022173,2]
[366898287,1750557063824,-502.83672334,0.00022173,2]
[366898288,1750557063840,-541.45082461,0.00022173,2]
[366898289,1750557063856,-500.64588502,0.00022173,2]
[366898290,1750557063873,-559.69951743,0.00022173,2]
[366898291,1750557063888,-500.0,0.00022173,2]
[366898292,1750557063911,-502.52562412,0.00022173,2]
[366898293,1750557063927,-500.0,0.00022173,2]
[366898294,1750557063942,-182.45941547,0.00022173,2]
[366898295,1750557063957,-500.83582982,0.00022173,2]
[366898296,1750557063973,-367.84689339,0.00022173,2]
[366898297,1750557063989,-500.0,0.00022173,2]
[366898298,1750557064004,-500.0,0.00022173,2]
[366898299,1750557064019,-500.0,0.00022173,2]
[366898300,1750557064036,-500.74374198,0.00022173,2]
[366898301,1750557064051,-500.0,0.00022173,2]
[366898302,1750557064066,-151.0,0.00022173,7]
[366898303,1750557064081,-501.973561,0.00022173,7]
[366898304,1750557064097,-501.973561,0.00022173,7]
[366898305,1750557064113,-151.0,0.00022173,7]
[366898306,1750557064134,-5242.2009298,0.00022176,2]
[366898307,1750557064160,-272.96459212,0.00022181,2]
[366898308,1750557064183,-150.0,0.00022181,2]
[366898309,1750557064207,-12292.47503666,0.00022182,2]
[366898310,1750557064228,-945.696161,0.00022182,7]
[366898311,1750557064248,-945.696161,0.00022182,7]
[366898312,1750557064269,-207.880736,0.00022182,7]
[366898313,1750557064287,-171.589932,0.00022182,7]
[366898314,1750557064305,-151.0,0.00022182,7]
[366898315,1750557064322,-171.589932,0.00022182,7]
[366898316,1750557064339,-1478.65194,0.00022182,7]
[366898317,1750557064356,-1478.65194,0.00022182,7]
[366898318,1750557064373,-279.398262,0.00022182,7]
[366898319,1750557064390,-279.398262,0.00022182,7]
[366898320,1750557064407,-1229982.98912266,0.00022183,3]
[366898321,1750557066149,-850.42062026,0.00022183,3]
[366898322,1750557066160,-2286.25111436,0.00022183,3]
[366898323,1750557066172,-3796.26031512,0.00022183,3]
[366898324,1750557066184,-976.6118537,0.00022183,3]
[366898325,1750557066195,-642.10435289,0.00022183,3]
[366898326,1750557066978,-150.0,0.00021215,2]
[366898327,1750557066988,-899.41419005,0.00022182,2]
[366898328,1750557067001,-1685.77121904,0.00022182,2]
[366898329,1750557067012,-1007.52312096,0.00022182,2]
[366898330,1750557067024,-1914.40566184,0.00022182,2]
[366898331,1750557067033,-9300.80975922,0.00022183,3]
[366898332,1750557067075,-150.0,0.00021745,2]
[366898333,1750557067084,-2175.0000005,0.00022183,3]
[366898334,1750557067096,-1705.5582732,0.00022183,3]
[366898335,1750557067107,-574.51572812,0.00022183,3]
[366898336,1750557067127,-150.0,0.0002097,2]
[366898337,1750557067137,-8559.2528,0.00022183,3]
[366898338,1750557067149,-289.15000193,0.00022183,3]
[366898339,1750557067304,-262.27686435,0.00022183,3]
[366898340,1750557067316,-7789.27757333,0.00022183,3]
[366898341,1750557068788,-151.0,0.00021917,2]
[366898342,1750557068800,-151.0,0.00021917,2]
[366898343,1750557068811,-151.0,0.00021917,2]
[366898344,1750557068821,-235.795652,0.00021917,2]
[366898345,1750557068831,-621.98194496,0.00022183,3]
[366898346,1750557068843,-569.76455041,0.00022183,3]
[366898347,1750557068857,-1489.3219873,0.00022183,3]
[366898348,1750557068988,-608.64191353,0.00022089,2]
[366898349,1750557069834,-490.0,0.00021917,2]
[366898350,1750557069845,-3.61454657,0.00022089,2]
[366898351,1750557069857,-636.51545343,0.00022089,2]
[366898352,1750557069887,-6250.78371448,0.00022089,2]
[366898353,1750557069897,-77459.56732403,0.00022183,3]
[366898354,1750557070044,-276.48679559,0.00022183,3]
[366898355,1750557070091,-396.22964331,0.00022183,3]
[366898357,1750557281714,156.91,0.00013699,2]
[366898359,1750557492017,202.0,0.00017662,2]
[366898369,1750557851847,202.0,0.00018175,2]
[366898371,1750558002203,203.0,0.00018175,2]
[366898573,1750558231995,-202.0,0.00018724,2]
[366898574,1750558232005,-300.0,0.00019775,2]
[366898575,1750558232016,-150.0,0.00019948,2]
[366898576,1750558232026,-150.0,0.00019948,2]
[366898577,1750558232036,-150.0,0.00019948,2]
[366898578,1750558232046,-152.06202334,0.00019948,2]
[366898579,1750558232057,-155.74630477,0.00019948,2]
[366898580,1750558232067,-150.0,0.00019948,2]
[366898581,1750558232077,-202.0,0.00020311,4]
[366898582,1750558232087,-300.0,0.00020346,2]
[366898583,1750558232098,-1200.0,0.00020346,2]
[366898584,1750558232109,-231.86,0.00020346,2]
[366898585,1750558232121,-22096.7,0.00020347,2]
[366898586,1750558232131,-163.82,0.00020413,2]
[366898587,1750558232143,-168.0,0.00020445,2]
[366898588,1750558232155,-2085.31,0.00020463,2]
[366898591,1750558232453,-666.0,0.0002047,2]
[366898592,1750558232493,-150.0,0.00020502,4]
[366898593,1750558232504,-150.0,0.00020502,4]
[366898595,1750558232514,-168.0,0.00020506,2]
[366898597,1750558232528,-247.38784677,0.00020558,2]
[366898599,1750558232539,-300.0,0.00020613,2]
[366898601,1750558232548,-1427.93,0.00020614,2]
[366898603,1750558232559,-150.0,0.00020687,4]
[366898605,1750558232568,-168.0,0.00020739,2]
[366898607,1750558232578,-168.0,0.00020753,2]
[366898609,1750558232588,-247.81,0.00020838,2]
[366898611,1750558232598,-302.92,0.00020838,2]
[366898613,1750558232608,-253.56,0.00020838,2]
[366898615,1750558232618,-251.29,0.00020838,2]
[366898617,1750558232628,-303.87,0.00020838,2]
[366898619,1750558232638,-168.0,0.00020887,2]
[366898621,1750558232648,-252.59,0.000209,2]
[366898623,1750558232658,-254.32,0.000209,2]
[366898625,1750558232668,-301.49,0.000209,2]
[366898627,1750558232678,-305.57,0.000209,2]
[366898630,1750558232688,-247.07,0.000209,2]
[366898632,1750558232698,-250.48,0.000209,2]
[366898634,1750558232708,-300.3,0.000209,2]
[366898636,1750558232717,-246.82,0.000209,2]
[366898638,1750558232727,-249.57,0.000209,2]
[366898640,1750558232740,-150.0,0.00020919,2]
[366898642,1750558232749,-168.0,0.00020922,2]
[366898644,1750558232759,-150.0,0.0002099,2]
[366898646,1750558232768,-150.0,0.00020999,2]
[366898648,1750558232779,-150.0,0.00021,2]
[366898650,1750558232788,-150.0,0.00021056,4]
[366898652,1750558232802,-150.0,0.00021056,4]
[366898654,1750558232811,-168.0,0.00021061,2]
[366898656,1750558232821,-300.0,0.00021092,2]
[366898658,1750558232831,-300.0,0.00021092,2]
[366898660,1750558232842,-168.0,0.00021194,2]
[366898662,1750558232852,-300.0,0.000213,7]
[366898664,1750558232862,-494.99,0.0002137,2]
[366898667,1750558232872,-355.09,0.0002137,2]
[366898669,1750558232883,-170.97,0.0002137,2]
[366898671,1750558232894,-426.09,0.0002137,2]
[366898673,1750558232905,-151.0,0.00021372,2]
[366898675,1750558232915,-151.0,0.00021372,2]
[366898677,1750558232926,-151.0,0.00021372,2]
[366898679,1750558232936,-1957.856,0.00021372,2]
[366898681,1750558232946,-151.0,0.00021372,2]
[366898683,1750558232956,-262.0,0.00021372,2]
[366898685,1750558232967,-151.0,0.00021372,2]
[366898687,1750558232977,-159.11282744,0.00021372,2]
[366898689,1750558232991,-300.0,0.00021372,2]
[366898691,1750558233002,-300.0,0.00021372,2]
[366898693,1750558233012,-300.0,0.00021372,2]
[366898695,1750558233023,-300.0,0.00021372,2]
[366898697,1750558233034,-300.0,0.00021372,2]
[366898699,1750558233045,-300.0,0.00021372,2]
[366898701,1750558233056,-300.0,0.00021372,2]
[366898703,1750558233067,-300.0,0.00021372,2]
[366898706,1750558233084,-300.0,0.00021372,2]
[366898708,1750558233095,-300.0,0.00021372,2]
[366898709,1750558233106,-300.0,0.00021372,2]
[366898710,1750558233119,-300.0,0.00021372,2]
[366898711,1750558233131,-300.0,0.00021372,2]
[366898712,1750558233142,-300.0,0.00021372,2]
[366898713,1750558233154,-300.0,0.00021372,2]
[366898714,1750558233164,-668.65185757,0.00021372,2]
[366898715,1750558233175,-207.4,0.00021372,2]
[366898716,1750558233187,-168.0,0.00021396,2]
[366898717,1750558233197,-700.0,0.000214,7]
[366898718,1750558233207,-150.0,0.00021426,4]
[366898719,1750558233218,-2030.296672,0.00021427,2]
[366898720,1750558233228,-402.70846811,0.00021482,2]
[366898721,1750558234169,-1702.70918075,0.00021482,2]
[366898722,1750558234180,-1100.0,0.000215,7]
[366898723,1750558234191,-2183.31810187,0.00021537,2]
[366898724,1750558234201,-202.0,0.00021567,2]
[366898725,1750558234212,-2264.10087164,0.00021592,2]
[366898726,1750558234221,-1400.0,0.000216,7]
[366898727,1750558234231,-150.0,0.0002161,4]
[366898728,1750558234243,-150.0,0.0002161,4]
[366898729,1750558234253,-1793.54927823,0.00021617,2]
[366898730,1750558234263,-1594.29,0.00021644,2]
[366898731,1750558234274,-469.76,0.00021644,2]
[366898732,1750558234284,-300.27,0.00021644,2]
[366898733,1750558234295,-341.78,0.00021644,2]
[366898734,1750558234305,-369.65,0.00021644,2]
[366898735,1750558234316,-455.38,0.00021644,2]
[366898736,1750558234327,-1648.83072891,0.00021647,2]
[366898737,1750558234340,-699.04187498,0.00021647,2]
[366898738,1750558234350,-1800.0,0.000217,7]
[366898739,1750558234360,-170.94,0.000217,2]
[366898740,1750558234371,-747.13,0.000217,2]
[366898741,1750558234381,-2434.74389024,0.00021702,2]
[366898742,1750558234391,-238.02,0.00021706,2]
[366898743,1750558234402,-783.479326,0.00021738,4]
[366898744,1750558234412,-2524.82941417,0.00021757,2]
[366898745,1750558234423,-300.0,0.000218,7]
[366898746,1750558234434,-2618.2481025,0.00021812,2]
[366898747,1750558234444,-199.67954133,0.00021817,2]
[366898748,1750558234455,-9833.9800294,0.00021817,2]
[366898749,1750558234465,-176.36869655,0.00021817,2]
[366898750,1750558234475,-528.31797774,0.00021817,2]
[366898751,1750558234486,-794.696,0.00021859,2]
[366898752,1750558234498,-2715.12328229,0.00021867,2]
[366898753,1750558234508,-1767.19102931,0.00021878,2]
[366898754,1750558234539,-8066.78900001,0.00021878,2]
[366898755,1750558234549,-202.0,0.00021899,6]
[366898756,1750558234560,-300.0,0.000219,7]
[366898757,1750558234570,-1793.5,0.000219,2]
[366898758,1750558234580,-515.57187235,0.000219,6]
[366898759,1750558234590,-181.97639475,0.00021907,2]
[366898760,1750558234601,-230.92396611,0.00021916,2]
[366898761,1750558234610,-349.71889323,0.00021916,2]
[366898762,1750558234620,-500.0,0.00021916,2]
[366898763,1750558234630,-612.9427972,0.00021916,2]
[366898764,1750558234640,-263.5554811,0.00021916,2]
[366898765,1750558234650,-612.9427972,0.00021916,2]
[366898766,1750558234660,-242.99124,0.00021916,2]
[366898767,1750558234670,-612.9427972,0.00021916,2]
[366898768,1750558234679,-612.9427972,0.00021916,2]
[366898769,1750558234689,-612.9427972,0.00021916,2]
[366898770,1750558234703,-612.9427972,0.00021916,2]
[366898771,1750558234713,-612.9427972,0.00021916,2]
[366898772,1750558234723,-612.9427972,0.00021916,2]
[366898773,1750558234735,-612.9427972,0.00021916,2]
[366898774,1750558234746,-612.9427972,0.00021916,2]
[366898775,1750558234755,-612.9427972,0.00021916,2]
[366898776,1750558234765,-612.9427972,0.00021916,2]
[366898777,1750558234775,-612.9427972,0.00021916,2]
[366898778,1750558234787,-612.9427972,0.00021916,2]
[366898779,1750558234797,-612.9427972,0.00021916,2]
[366898780,1750558234806,-500.0,0.00021916,2]
[366898781,1750558234815,-500.0,0.00021916,2]
[366898782,1750558234825,-500.0,0.00021916,2]
[366898783,1750558234834,-550.84251271,0.00021916,2]
[366898784,1750558234844,-500.0,0.00021916,2]
[366898785,1750558234854,-500.0,0.00021916,2]
[366898786,1750558234864,-829.2773163,0.00021916,2]
[366898787,1750558234971,-829.2773163,0.00021916,2]
[366898788,1750558234984,-829.2773163,0.00021916,2]
[366898789,1750558234995,-829.2773163,0.00021916,2]
[366898790,1750558235005,-829.2773163,0.00021916,2]
[366898791,1750558235015,-829.2773163,0.00021916,2]
[366898792,1750558235025,-829.2773163,0.00021916,2]
[366898793,1750558235035,-829.2773163,0.00021916,2]
[366898794,1750558235046,-781.12573018,0.00021916,2]
[366898795,1750558235055,-781.12573018,0.00021916,2]
[366898796,1750558235066,-781.12573018,0.00021916,2]
[366898797,1750558235075,-186.8,0.00021916,2]
[366898798,1750558235085,-300.0,0.00021916,2]
[366898799,1750558235096,-290.6120649,0.00021916,2]
[366898800,1750558235106,-300.0,0.00021916,2]
[366898801,1750558235119,-300.0,0.00021916,2]
[366898802,1750558235128,-248.36,0.00021917,2]
[366898803,1750558235138,-250.93,0.00021917,2]
[366898804,1750558235148,-67474.3351147,0.00021917,2]
[366898814,1750558237886,-289.02788552,0.00021917,2]
[366898815,1750558238048,-654.5165688,0.00021917,2]
[366898816,1750558238060,-2338.0522312,0.00021917,2]
[366898817,1750558238075,-1982.08854266,0.00021917,2]
[366898818,1750558238087,-1960.780522,0.00021917,2]
[366898819,1750558238098,-763.39440696,0.00021917,2]
[366899022,1750558240379,-676.33651345,0.00021917,2]
[366899027,1750558240412,-10973.14965818,0.00021917,2]
[366899031,1750558240445,-3066.05253977,0.00021917,2]
[366899097,1750558244886,-1450.0,0.00021917,2]
[366899100,1750558246027,-607.96736806,0.00021917,2]
[366899101,1750558246039,-15234.46887798,0.00021917,2]
[366899102,1750558246237,-2984.80457001,0.00021917,2]
[366899112,1750558275843,280.52086603,0.00021342,30]
[366899113,1750558275956,280.52086603,0.00021425,30]
[366899114,1750558276079,280.52086603,0.00021507,30]
[366899115,1750558276197,280.52086603,0.00021589,30]
[366899116,1750558276326,280.52086603,0.00021671,30]
[366899117,1750558276446,280.52086603,0.00021781,30]
[366899118,1750558276569,280.52086603,0.00021863,30]
[366899119,1750558277323,280.52086603,0.00021945,30]
[366899122,1750558345019,156.72,0.00013699,2]
[366899123,1750558572309,202.0,0.00017724,2]
[366899124,1750558801985,10000.0,0.00024658,120]
[366899125,1750558814858,10000.0,0.00024658,120]
[366899126,1750558860662,9080.915,0.00024658,120]
[366899127,1750558931777,202.0,0.0001835,2]
[366899128,1750559134339,345.64469651,0.0002,120]
[366899131,1750559211961,187.46,0.00016712,2]
[366899144,1750559249502,-202.0,0.00020016,4]
[366899145,1750559249543,-300.0,0.000214,7]
[366899146,1750559249566,-220.51662559,0.000215,7]
[366899147,1750559249598,-479.48337441,0.000215,7]
[366899148,1750559249721,-520.51662559,0.000216,7]
[366899149,1750559249780,-150.0,0.00021056,4]
[366899150,1750559249807,-479.48337441,0.000216,7]
[366899151,1750559249832,-202.0,0.00021682,6]
[366899152,1750559249855,-1400.0,0.000217,7]
[366899153,1750559249879,-1700.0,0.000218,7]
[366899154,1750559249903,-300.0,0.000219,7]
[366899156,1750559257529,520.51662582,0.000209,4]
[366899157,1750559257792,520.51662559,0.00021038,4]
[366899158,1750559258055,520.51662559,0.00021176,4]
[366899159,1750559258383,520.51662559,0.00021314,5]
[366899160,1750559258788,520.51662559,0.00021452,5]
[366899161,1750559259005,520.51662559,0.0002159,5]
[366899162,1750559259248,520.51662559,0.00021728,5]
[366899163,1750559259495,520.51662559,0.00021866,6]
[366899164,1750559270524,179.62743829,0.0002,5]
[366899165,1750559271447,600.0,0.0002,5]
[366899167,1750559316073,350.72314141,0.000246,120]
[366899203,1750559432178,-300.0,0.00018748,2]
[366899204,1750559432189,-250.0,0.00018873,2]
[366899209,1750559432569,-300.0,0.00019097,2]
[366899212,1750559432610,-500.0,0.00019121,2]
[366899214,1750559432621,-500.0,0.00019518,2]
[366899216,1750559432631,-7188.9103772,0.00019852,2]
[366899218,1750559432641,-1200.0,0.00019947,2]
[366899221,1750559432651,-150.0,0.00019948,2]
[366899223,1750559432661,-150.0,0.00019948,2]
[366899225,1750559432671,-150.0,0.00019948,2]
[366899227,1750559432681,-150.0,0.00019948,2]
[366899229,1750559432690,-150.0,0.00019948,2]
[366899231,1750559432699,-276.71174688,0.00019995,2]
[366899233,1750559432709,-317.5948197,0.00019995,2]
[366899234,1750559432719,-300.0,0.00020052,2]
[366899235,1750559432729,-349.0,0.00020053,2]
[366899236,1750559432739,-151.0,0.00020128,2]
[366899237,1750559432749,-151.0,0.0002013,2]
[366899238,1750559432760,-151.0,0.00020131,2]
[366899239,1750559432770,-151.0,0.00020137,2]
[366899240,1750559432779,-151.0,0.00020144,2]
[366899241,1750559432790,-151.0,0.00020145,2]
[366899242,1750559432800,-151.0,0.00020151,2]
[366899243,1750559432809,-151.0,0.00020151,2]
[366899244,1750559432819,-301.04,0.00020164,2]
[366899245,1750559432830,-165.38,0.00020175,2]
[366899246,1750559432840,-1000.0,0.00020199,2]
[366899247,1750559432849,-300.0,0.00020218,2]
[366899248,1750559432859,-9028.27,0.00020219,2]
[366899249,1750559432869,-200.0,0.00020254,2]
[366899250,1750559432879,-319.31,0.00020259,2]
[366899251,1750559432889,-666.0,0.00020361,2]
[366899252,1750559432898,-451.0,0.00020361,2]
[366899253,1750559432908,-300.0,0.00020486,2]
[366899254,1750559432917,-300.0,0.0002054,2]
[366899255,1750559432927,-500.0,0.00020596,2]
[366899256,1750559432936,-500.0,0.00020596,2]
[366899257,1750559432947,-250.0,0.00020623,2]
[366899258,1750559432958,-250.0,0.00020623,2]
[366899259,1750559432969,-2607.91,0.00020706,2]
[366899260,1750559432979,-1662.0,0.00020743,2]
[366899261,1750559432988,-1662.0,0.00020841,2]
[366899262,1750559432998,-164.01,0.00020888,2]
[366899263,1750559433009,-168.0,0.00021286,2]
[366899264,1750559433020,-1662.0,0.00021308,2]
[366899265,1750559433032,-168.0,0.00021311,2]
[366899266,1750559433043,-1662.0,0.00021364,2]
[366899267,1750559433055,-170.79,0.0002137,2]
[366899268,1750559433065,-453.79,0.0002137,2]
[366899269,1750559433077,-150.42,0.0002137,2]
[366899270,1750559433087,-415.65,0.0002137,2]
[366899271,1750559433098,-150.0,0.0002137,2]
[366899272,1750559433107,-170.89,0.0002137,2]
[366899273,1750559433118,-150.0,0.0002137,2]
[366899274,1750559433129,-150.0,0.0002137,2]
[366899275,1750559433139,-150.0,0.0002137,2]
[366899276,1750559433151,-151.0,0.00021372,2]
[366899277,1750559433163,-1698.05835245,0.00021372,2]
[366899278,1750559433179,-259.79764755,0.00021372,2]
[366899279,1750559433190,-207.4,0.00021372,2]
[366899280,1750559433201,-151.0,0.00021372,2]
[366899281,1750559433211,-151.0,0.00021372,2]
[366899282,1750559433221,-285.76947837,0.00021372,2]
[366899283,1750559433232,-300.0,0.00021372,2]
[366899284,1750559433243,-500.0,0.00021372,2]
[366899285,1750559433254,-300.0,0.00021372,2]
[366899286,1750559433265,-500.0,0.00021372,2]
[366899287,1750559433276,-300.0,0.00021372,2]
[366899288,1750559433288,-571.93225272,0.00021372,2]
[366899289,1750559433299,-300.0,0.00021372,2]
[366899290,1750559433309,-300.0,0.00021372,2]
[366899291,1750559433319,-300.0,0.00021372,2]
[366899292,1750559433331,-300.0,0.00021372,2]
[366899293,1750559433341,-300.0,0.00021372,2]
[366899294,1750559433352,-668.65185757,0.00021372,2]
[366899295,1750559433363,-151.0,0.00021372,2]